bitfinex/quotes_BTCUSD_20220103
["timestamp","ask_amount","ask_price","bid_price","bid_amount"]
[1641230199533,0.64675094,46429.0,46428.0,2.39713017]
[1641230200133,0.64675094,46429.0,46428.0,2.43504039]
[1641230200333,0.64675094,46429.0,46428.0,2.39713017]
[1641230200732,0.64675094,46429.0,46428.0,2.09905887]
[1641230204390,0.64415854,46429.0,46428.0,2.09905887]
[1641230204995,0.64415854,46429.0,46428.0,2.19905887]
[1641230205194,0.21348754,46429.0,46428.0,2.19905887]
[1641230205393,0.21348754,46429.0,46428.0,2.09905887]
[1641230205944,0.60113515,46442.0,46441.0,0.07550207]
[1641230206129,1.33328604,46442.0,46441.0,0.07550207]
[1641230206329,0.73215089,46442.0,46441.0,0.12550207]
[1641230206631,0.73215089,46442.0,46441.0,0.1]
[1641230206929,0.73215089,46442.0,46441.0,0.05]
[1641230207131,0.73215089,46442.0,46440.0,0.16149817]
[1641230207427,0.08617997,46441.0,46440.0,0.21149817]
[1641230207628,0.73214997,46441.0,46440.0,0.053833]
[1641230209694,0.64597,46441.0,46440.0,0.053833]
[1641230210093,0.64597,46441.0,46440.0,0.103833]
[1641230210894,0.79597,46441.0,46440.0,0.103833]
[1641230211894,0.79597,46441.0,46440.0,0.098833]
[1641230212399,0.64597,46441.0,46440.0,0.098833]
[1641230213531,0.79597,46441.0,46440.0,0.098833]
[1641230214937,0.79597,46441.0,46440.0,0.148833]
[1641230217208,0.79350127,46441.0,46440.0,0.148833]
[1641230218108,0.79350127,46441.0,46440.0,1.292833]
[1641230218708,0.79350127,46441.0,46440.0,1.401366]
[1641230219108,0.79350127,46441.0,46440.0,1.644616]
[1641230219308,0.79350127,46441.0,46440.0,0.500616]
[1641230219708,0.79350127,46441.0,46440.0,0.355616]
[1641230219909,0.79350127,46441.0,46440.0,0.505616]
[1641230220308,0.24350127,46441.0,46440.0,1.649616]
[1641230220508,0.24350127,46441.0,46440.0,1.549616]
[1641230220708,0.24350127,46441.0,46440.0,1.649616]
[1641230221332,0.39350127,46441.0,46440.0,1.649616]
[1641230222136,0.39350127,46441.0,46440.0,0.505616]
[1641230222638,0.39350127,46441.0,46440.0,0.305616]
[1641230223036,0.39350127,46441.0,46440.0,1.549616]
[1641230223237,0.24350127,46441.0,46440.0,1.649616]
[1641230223638,0.24350127,46441.0,46440.0,1.697716]
[1641230224694,0.24350127,46441.0,46440.0,1.69895593]
[1641230226997,0.24350127,46441.0,46440.0,1.70748893]
[1641230227696,0.24228645,46441.0,46440.0,1.70748893]
[1641230228749,0.24228645,46441.0,46440.0,2.16505149]
[1641230228939,0.24228645,46441.0,46440.0,1.70748893]
[1641230229133,0.24228645,46441.0,46440.0,1.69895593]
[1641230231038,0.24228645,46441.0,46440.0,1.70748993]
[1641230236533,0.24170617,46441.0,46440.0,1.70748993]
[1641230238735,0.24170617,46441.0,46440.0,2.30918993]
[1641230238933,0.00040249,46443.0,46441.0,0.62]
[1641230239136,0.00785838,46445.0,46442.0,2.40790525]
[1641230239333,0.00785838,46445.0,46444.0,1.144]
[1641230239535,0.00785838,46445.0,46444.0,1.88252002]
[1641230240198,1.1663,46453.0,46444.0,1.88252002]
[1641230240397,0.596,46453.0,46452.0,0.09947225]
[1641230240599,0.6821512,46453.0,46452.0,0.20139167]
[1641230241397,0.6821512,46453.0,46452.0,0.10191942]
[1641230241608,0.6821512,46453.0,46452.0,0.0481]
[1641230243099,0.6621512,46453.0,46452.0,0.0481]
[1641230243300,0.0861512,46453.0,46452.0,0.0481]
[1641230243551,0.0861512,46453.0,46451.0,0.10382]
[1641230243749,0.00036224,46455.0,46453.0,0.103824]
[1641230243947,0.43598247,46454.0,46453.0,0.103824]
[1641230244148,0.43598247,46454.0,46453.0,0.053824]
[1641230244348,0.43598247,46454.0,46453.0,0.103824]
[1641230244746,0.43598247,46454.0,46453.0,0.053824]
[1641230245751,0.08616047,46454.0,46453.0,0.053824]
[1641230249598,0.08628428,46454.0,46453.0,0.053824]
[1641230253046,0.08628428,46454.0,46453.0,1.197824]
[1641230253244,0.08628428,46454.0,46453.0,0.053824]
[1641230254543,0.08628428,46454.0,46453.0,1.197824]
[1641230255391,0.08628428,46454.0,46453.0,1.297824]
[1641230255591,0.08628428,46454.0,46453.0,1.197824]
[1641230256690,0.08628428,46454.0,46453.0,0.053824]
[1641230259942,0.68741943,46454.0,46453.0,0.053824]
[1641230260743,0.60125896,46454.0,46453.0,0.053824]
[1641230260944,0.60125896,46454.0,46453.0,1.197824]
[1641230261649,0.00012381,46454.0,46453.0,1.197824]
[1641230262985,0.00012381,46454.0,46453.0,1.247824]
[1641230263387,0.00012381,46454.0,46453.0,1.295924]
[1641230263588,0.00012381,46454.0,46453.0,1.445924]
[1641230264190,0.00012381,46454.0,46453.0,1.689089]
[1641230267047,0.00012381,46454.0,46453.0,1.69030445]
[1641230267348,0.59162487,46463.0,46462.0,0.09558508]
[1641230267546,0.59162487,46463.0,46462.0,1.28958508]
[1641230267547,1.09144687,46463.0,46462.0,1.28958508]
[1641230267948,0.499822,46463.0,46462.0,1.51143476]
[1641230268148,0.15,46463.0,46462.0,1.51143476]
[1641230269049,0.15,46463.0,46462.0,1.95264076]
[1641230269251,0.59648599,46467.0,46462.0,1.95264076]
[1641230269456,0.00788599,46467.0,46465.0,0.49605403]
[1641230269728,0.00788599,46467.0,46466.0,1.1921]
[1641230269925,0.15788599,46467.0,46466.0,0.341182]
[1641230270129,0.15788599,46467.0,46466.0,1.585182]
[1641230270331,0.15,46467.0,46466.0,1.638985]
[1641230270526,2.08817296,46473.0,46466.0,0.494985]
[1641230270727,0.2975,46476.0,46472.0,0.00128164]
[1641230270927,0.64552,46475.0,46470.0,0.0481]
[1641230271127,0.64552,46475.0,46470.0,0.15568703]
[1641230271328,0.64552,46475.0,46470.0,0.0481]
[1641230271527,0.64552,46475.0,46471.0,0.05]
[1641230271929,0.15,46472.0,46471.0,0.05]
[1641230272130,0.15,46472.0,46471.0,0.207589]
[1641230272327,0.15,46472.0,46471.0,0.157589]
[1641230274143,0.499822,46472.0,46471.0,0.157589]
[1641230277192,1.10222122,46472.0,46471.0,0.157589]
[1641230281142,0.499822,46472.0,46471.0,0.157589]
[1641230281541,0.15,46472.0,46471.0,0.157589]
[1641230282342,0.60272853,46474.0,46471.0,0.157589]
[1641230282555,0.15,46472.0,46471.0,0.157589]
[1641230282744,0.15,46472.0,46471.0,0.166122]
[1641230283141,0.00011605,46472.0,46471.0,0.166122]
[1641230283342,0.15011605,46472.0,46471.0,0.166122]
[1641230283546,0.00011605,46472.0,46471.0,0.264222]
[1641230283740,0.00011605,46472.0,46471.0,0.318019]
[1641230284043,0.63563605,46473.0,46471.0,0.418019]
[1641230284443,0.63563605,46473.0,46472.0,1.144]
[1641230284701,0.63563605,46473.0,46472.0,1.2921]
[1641230285003,0.78563605,46473.0,46472.0,1.34589365]
[1641230285603,0.20529005,46473.0,46472.0,1.34589365]
[1641230286005,0.20529005,46473.0,46472.0,0.20189365]
[1641230286204,0.00032931,46474.0,46472.0,0.20189365]
[1641230286404,0.00032931,46474.0,46473.0,0.053793]
[1641230286603,0.00032931,46474.0,46473.0,0.151893]
[1641230287905,0.15032931,46474.0,46473.0,0.151893]
[1641230288558,0.61038507,46476.0,46474.0,0.053793]
[1641230288748,0.61038507,46476.0,46475.0,0.0481]
[1641230288950,0.71191438,46476.0,46475.0,0.0981]
[1641230289266,0.71191438,46476.0,46475.0,1.2921]
[1641230289451,0.71191438,46476.0,46475.0,0.2481]
[1641230289852,0.10951516,46476.0,46475.0,0.2481]
[1641230290255,0.10162931,46476.0,46475.0,0.2481]
[1641230290454,0.10162931,46476.0,46475.0,0.1481]
[1641230290950,0.10152931,46476.0,46475.0,0.1481]
[1641230293805,0.10152931,46476.0,46475.0,1.2921]
[1641230294308,0.10152931,46476.0,46475.0,1.3921]
[1641230294605,0.0001,46478.0,46476.0,0.08200648]
[1641230295007,0.10152931,46477.0,46476.0,0.08200648]
[1641230296045,0.0001,46478.0,46476.0,0.08200648]
[1641230296250,0.10152931,46477.0,46476.0,1.22600648]
[1641230296546,0.10152931,46477.0,46476.0,1.32600648]
[1641230297143,0.10152931,46477.0,46476.0,1.52354857]
[1641230297845,0.10152931,46477.0,46476.0,0.18200648]
[1641230298051,0.10152931,46477.0,46476.0,0.08200648]
[1641230299046,0.10152931,46477.0,46475.0,0.46422432]
[1641230299245,0.08610947,46476.0,46475.0,0.26422432]
[1641230299446,0.72152931,46476.0,46475.0,0.26992032]
[1641230299702,0.72152931,46476.0,46475.0,0.21613004]
[1641230299703,1.13783131,46476.0,46475.0,0.21613004]
[1641230299902,1.13783131,46476.0,46475.0,0.16233404]
[1641230300103,2.07138993,46476.0,46475.0,0.16233404]
[1641230300304,1.97138993,46476.0,46475.0,0.00096304]
[1641230300709,1.35138993,46476.0,46469.0,0.062343]
[1641230300905,0.08614006,46471.0,46469.0,0.008533]
[1641230301103,0.349822,46472.0,46463.0,0.05]
[1641230301104,1.09310284,46470.0,46463.0,0.05]
[1641230301304,0.43722864,46469.0,46467.0,0.107626]
[1641230301605,1.08272864,46469.0,46467.0,0.107626]
[1641230301806,1.34723057,46469.0,46467.0,0.116159]
[1641230302004,0.479822,46468.0,46454.0,0.215238]
[1641230302208,0.27794247,46459.0,46454.0,0.215238]
[1641230302403,0.27794247,46459.0,46443.0,1.0859]
[1641230302404,0.08616604,46455.0,46451.0,0.107647]
[1641230302605,0.33286247,46459.0,46448.0,0.053828]
[1641230302606,0.08616604,46452.0,46448.0,0.053828]
[1641230302804,0.995322,46454.0,46448.0,0.053828]
[1641230302805,0.349822,46451.0,46448.0,0.053828]
[1641230303005,0.6455,46454.0,46448.0,0.053828]
[1641230303312,0.699329,46454.0,46450.0,0.161485]
[1641230303568,0.09652931,46451.0,46450.0,0.161485]
[1641230303765,0.41247401,46451.0,46450.0,0.107657]
[1641230303967,0.76229601,46451.0,46450.0,0.116191]
[1641230304166,1.40779601,46451.0,46450.0,0.116191]
[1641230304768,1.68956391,46451.0,46450.0,0.116191]
[1641230305163,1.69082994,46451.0,46450.0,0.116191]
[1641230305967,1.40906204,46451.0,46450.0,0.116191]
[1641230307892,1.4092374,46451.0,46450.0,0.116191]
[1641230309891,2.01163662,46451.0,46450.0,0.116191]
[1641230311155,1.4092374,46451.0,46450.0,0.116191]
[1641230311550,1.0932927,46451.0,46450.0,0.116191]
[1641230314156,1.06935678,46451.0,46450.0,0.107657]
[1641230314806,0.64567536,46451.0,46450.0,0.155757]
[1641230315205,0.64567536,46451.0,46450.0,0.150757]
[1641230315603,0.21517336,46451.0,46450.0,0.443942]
[1641230315803,0.21517336,46451.0,46450.0,0.87400973]
[1641230317005,0.21517336,46451.0,46450.0,1.18908997]
[1641230318007,0.21517336,46451.0,46450.0,2.51911302]
[1641230318837,0.21517336,46451.0,46450.0,3.67164602]
[1641230319042,0.21517336,46451.0,46450.0,3.68017902]
[1641230322405,0.21517336,46451.0,46450.0,2.21989105]
[1641230322611,0.21517336,46451.0,46450.0,1.491568]
[1641230324807,0.21517336,46451.0,46450.0,2.21990675]
[1641230325811,0.21517336,46451.0,46450.0,2.16990675]
[1641230329805,0.21517336,46451.0,46450.0,1.441568]
[1641230330010,0.21517336,46451.0,46450.0,1.491568]
[1641230330207,0.21517336,46451.0,46450.0,2.635568]
[1641230330808,0.20931382,46451.0,46450.0,2.635568]
[1641230331209,0.20931382,46451.0,46450.0,2.306708]
[1641230331410,0.20931382,46451.0,46450.0,1.656908]
[1641230332608,0.20931382,46451.0,46450.0,1.606908]
[1641230333475,0.20931382,46451.0,46450.0,0.462908]
[1641230333859,0.20931382,46451.0,46450.0,0.75859186]
[1641230334061,0.20931382,46451.0,46450.0,1.90259186]
[1641230335260,0.74943224,46464.0,46450.0,1.90259186]
[1641230335461,1.85098461,46465.0,46455.0,0.053813]
[1641230335665,1.84618461,46465.0,46458.0,0.053813]
[1641230335859,0.07385942,46460.0,46458.0,0.053813]
[1641230336062,0.07385942,46459.0,46458.0,0.053813]
[1641230336664,1.84618461,46465.0,46458.0,0.053813]
[1641230336963,0.2898,46466.0,46458.0,0.053813]
[1641230337206,0.02145697,46471.0,46462.0,0.09820186]
[1641230337400,0.64563,46469.0,46462.0,0.09820186]
[1641230337601,0.07428975,46464.0,46462.0,0.09820186]
[1641230337800,0.07385942,46463.0,46462.0,0.09820186]
[1641230337999,0.07385942,46463.0,46462.0,0.34131386]
[1641230338599,0.00043033,46464.0,46462.0,0.39512286]
[1641230338799,0.00043033,46464.0,46462.0,0.15201086]
[1641230339400,0.00043033,46464.0,46463.0,0.2431]
[1641230340002,0.07428975,46464.0,46463.0,0.2431]
[1641230341145,0.07028975,46464.0,46463.0,0.2431]
[1641230341342,0.21086925,46464.0,46463.0,0.2431]
[1641230341742,0.21102368,46464.0,46463.0,0.2431]
[1641230342243,0.00015443,46464.0,46463.0,0.2431]
[1641230349249,0.00015443,46464.0,46463.0,1.3871]
[1641230349452,0.00015443,46464.0,46463.0,1.4871]
[1641230349650,0.00015443,46464.0,46463.0,1.76165248]
[1641230352913,0.00015443,46464.0,46463.0,1.81165248]
[1641230355521,0.00015443,46464.0,46463.0,1.82018548]
[1641230358953,0.00015443,46464.0,46463.0,1.75254548]
[1641230359152,0.00015443,46464.0,46463.0,1.65444548]
[1641230359354,0.00015443,46464.0,46463.0,1.653235]
[1641230359817,0.00015443,46464.0,46463.0,1.661768]
[1641230360918,0.00015443,46464.0,46463.0,1.511768]
[1641230361119,0.00015443,46464.0,46463.0,1.661768]
[1641230365057,0.00015443,46464.0,46463.0,2.081768]
[1641230365259,0.00015443,46464.0,46463.0,2.1811483]
[1641230365862,0.64563,46469.0,46468.0,0.0012256]
[1641230366061,0.64563,46469.0,46468.0,1.3882916]
[1641230366259,0.64563,46469.0,46468.0,1.4882916]
[1641230366462,0.64563,46469.0,46468.0,1.5882916]
[1641230367061,0.64563,46469.0,46468.0,1.6363916]
[1641230367343,0.64563,46469.0,46468.0,1.6901846]
[1641230368743,0.64563,46469.0,46468.0,1.6401846]
[1641230369846,0.64563,46469.0,46468.0,1.6901846]
[1641230371066,0.64563,46469.0,46468.0,1.6987186]
[1641230372061,0.64563,46469.0,46468.0,2.07778763]
[1641230373568,0.64563,46469.0,46468.0,1.6987186]
[1641230374916,0.6457746,46469.0,46468.0,1.6987186]
[1641230375120,0.6457746,46469.0,46468.0,2.0687186]
[1641230375319,0.63909693,46469.0,46468.0,0.9247186]
[1641230375519,0.63909693,46469.0,46468.0,0.923493]
[1641230375719,0.63909693,46469.0,46468.0,2.067493]
[1641230376018,0.63709693,46469.0,46468.0,2.067493]
[1641230376221,0.63709693,46469.0,46468.0,0.923493]
[1641230377819,0.63709693,46469.0,46468.0,0.773493]
[1641230379063,0.63709693,46469.0,46468.0,2.79531142]
[1641230379260,0.63709693,46469.0,46468.0,2.1187225]
[1641230381062,0.63709693,46469.0,46468.0,2.1101885]
[1641230383916,0.63709693,46469.0,46468.0,2.1187215]
[1641230385819,0.20679793,46469.0,46468.0,2.1187215]
[1641230388169,0.0003564,46471.0,46469.0,0.053786]
[1641230388369,0.0003564,46471.0,46470.0,1.73617268]
[1641230388568,0.0003564,46471.0,46470.0,2.30617268]
[1641230388968,0.00788769,46473.0,46470.0,2.005154]
[1641230389172,0.00788769,46473.0,46472.0,0.593041]
[1641230389372,0.00788769,46473.0,46472.0,1.435141]
[1641230389570,0.00788769,46473.0,46472.0,1.585141]
[1641230390214,0.0001,46478.0,46472.0,1.585141]
[1641230390416,0.0001,46478.0,46475.0,0.40851828]
[1641230390615,0.0001,46478.0,46476.0,1.1921]
[1641230390816,0.0001,46478.0,46476.0,1.27581458]
[1641230390817,0.0079016,46477.0,46476.0,1.27581458]
[1641230391016,0.0079016,46477.0,46476.0,1.61882758]
[1641230391820,0.0079016,46477.0,46476.0,1.67261358]
[1641230392019,0.0079016,46477.0,46476.0,1.77261358]
[1641230392216,0.0001,46478.0,46476.0,1.77261358]
[1641230392417,0.0001,46478.0,46477.0,0.243007]
[1641230392617,0.0001,46478.0,46477.0,1.435107]
[1641230392817,0.0001,46478.0,46477.0,1.535107]
[1641230395569,0.0001,46478.0,46477.0,1.543641]
[1641230396172,0.00023903,46478.0,46477.0,1.543641]
[1641230398612,0.00023903,46478.0,46477.0,1.963641]
[1641230398810,0.00023903,46478.0,46477.0,0.719641]
[1641230399211,0.00023903,46478.0,46477.0,0.671541]
[1641230401756,0.00023903,46478.0,46477.0,1.815541]
[1641230401956,0.00023903,46478.0,46477.0,0.671541]
[1641230403057,0.00023903,46478.0,46477.0,0.428534]
[1641230405613,0.00023903,46478.0,46477.0,0.42]
[1641230407714,0.00023903,46478.0,46477.0,0.41500445]
[1641230410954,0.00023903,46478.0,46477.0,1.80201145]
[1641230411159,0.00023903,46478.0,46477.0,1.90201145]
[1641230411355,0.00023903,46478.0,46477.0,1.91054545]
[1641230411556,0.00023903,46478.0,46477.0,0.76654545]
[1641230411957,0.00023903,46478.0,46477.0,1.91054545]
[1641230412804,0.00023903,46478.0,46477.0,0.76654545]
[1641230413205,0.00023903,46478.0,46477.0,1.91054545]
[1641230413705,0.0011,46479.0,46478.0,1.144]
[1641230413905,0.0011,46479.0,46478.0,1.387]
[1641230414204,0.0011,46479.0,46478.0,0.243]
[1641230414404,0.07138975,46479.0,46478.0,0.243]
[1641230414806,0.0011,46479.0,46478.0,1.387]
[1641230418456,0.0011,46479.0,46478.0,0.243]
[1641230418656,0.0011,46479.0,46477.0,0.69343319]
[1641230418857,0.0011,46479.0,46478.0,0.243]
[1641230419057,0.0011,46479.0,46477.0,0.59343319]
[1641230419909,0.0011,46479.0,46478.0,0.243]
[1641230420110,0.0011,46479.0,46477.0,0.59343319]
[1641230420313,1.449822,46478.0,46477.0,0.48585845]
[1641230420516,2.095292,46478.0,46477.0,0.48585845]
[1641230420714,2.095292,46478.0,46477.0,0.43207145]
[1641230420715,2.22155172,46478.0,46477.0,0.43207145]
[1641230421110,2.29196786,46478.0,46477.0,0.43207145]
[1641230421512,2.16570814,46478.0,46477.0,0.43207145]
[1641230421912,1.06570814,46478.0,46477.0,0.33867145]
[1641230422114,1.39537966,46478.0,46477.0,0.008534]
[1641230422314,1.11380814,46478.0,46477.0,0.008534]
[1641230422511,1.48693794,46478.0,46477.0,0.008534]
[1641230422711,1.48818146,46478.0,46477.0,0.008534]
[1641230423560,1.54198546,46478.0,46477.0,0.008534]
[1641230423957,1.64198546,46478.0,46477.0,0.008534]
[1641230425160,1.54198546,46478.0,46477.0,0.008534]
[1641230425359,1.64198546,46478.0,46477.0,0.008534]
[1641230426157,1.54198546,46478.0,46477.0,0.008534]
[1641230426562,1.49388546,46478.0,46477.0,0.008534]
[1641230427212,2.7079479,46478.0,46477.0,0.008534]
[1641230427415,1.49388546,46478.0,46477.0,0.008534]
[1641230430967,1.59388546,46478.0,46477.0,0.008534]
[1641230432556,2.80792508,46478.0,46477.0,0.008534]
[1641230433158,2.70792508,46478.0,46477.0,0.008534]
[1641230433461,0.053805,46475.0,46470.0,0.053806]
[1641230433662,0.07028975,46471.0,46470.0,0.053806]
[1641230433859,0.71575975,46471.0,46470.0,0.053806]
[1641230434059,1.06558175,46471.0,46470.0,0.053806]
[1641230434718,0.71575975,46471.0,46470.0,0.053806]
[1641230436124,0.71575975,46471.0,46470.0,0.062339]
[1641230436322,1.06558175,46471.0,46470.0,0.062339]
[1641230436924,1.06558175,46471.0,46470.0,0.008533]
[1641230437723,0.71575975,46471.0,46470.0,0.008533]
[1641230437924,0.86575975,46471.0,46470.0,0.008533]
[1641230438787,0.79547,46471.0,46470.0,0.008533]
[1641230439779,0.79547,46471.0,46470.0,0.251586]
[1641230439981,0.79547,46471.0,46470.0,0.671586]
[1641230440180,0.79547,46471.0,46470.0,0.771586]
[1641230441983,0.79547,46471.0,46470.0,1.0095405]
[1641230442605,0.7955905,46471.0,46470.0,0.771586]
[1641230443006,0.795711,46471.0,46470.0,0.528533]
[1641230443207,0.7958315,46471.0,46470.0,0.428533]
[1641230448057,0.6458315,46471.0,46470.0,0.428533]
[1641230450020,0.7958315,46471.0,46470.0,0.428533]
[1641230450418,0.7958315,46471.0,46470.0,0.528533]
[1641230452019,0.7958315,46471.0,46470.0,0.428533]
[1641230453765,0.7958315,46471.0,46470.0,1.915586]
[1641230453766,0.78133391,46471.0,46470.0,1.915586]
[1641230454866,0.78133391,46471.0,46470.0,0.771586]
[1641230455668,0.78133391,46471.0,46470.0,0.793076]
[1641230458518,0.78133391,46471.0,46470.0,0.693076]
[1641230464572,0.78129636,46471.0,46470.0,0.693076]
[1641230464812,0.78146226,46471.0,46470.0,0.693076]
[1641230465413,0.78146226,46471.0,46470.0,0.793076]
[1641230466613,0.78146226,46471.0,46470.0,0.693076]
[1641230470963,0.78146226,46471.0,46470.0,0.688076]
[1641230476768,1.10066049,46471.0,46470.0,0.688076]
[1641230476970,1.10066049,46471.0,46470.0,0.445023]
[1641230477174,1.22099426,46471.0,46470.0,0.445023]
[1641230477370,1.26909426,46471.0,46470.0,0.025023]
[1641230477572,1.38036179,46471.0,46470.0,0.025023]
[1641230477770,1.45065154,46471.0,46470.0,0.025023]
[1641230478068,1.45065154,46471.0,46469.0,3.195e-05]
[1641230478267,0.42011175,46470.0,46469.0,3.195e-05]
[1641230478469,1.09942516,46470.0,46469.0,3.195e-05]
[1641230478671,1.59942516,46470.0,46469.0,3.195e-05]
[1641230478973,0.30015452,46465.0,46455.0,0.42]
[1641230479170,1.05132516,46464.0,46455.0,0.42]
[1641230479369,1.35778451,46464.0,46455.0,0.42]
[1641230479818,1.85778451,46464.0,46455.0,0.42]
[1641230480021,1.85778451,46464.0,46463.0,0.01643463]
[1641230480220,1.85778451,46464.0,46463.0,0.008533]
[1641230480918,2.00778451,46464.0,46463.0,0.008533]
[1641230481319,2.00648364,46464.0,46463.0,0.008533]
[1641230482219,2.00775065,46464.0,46463.0,0.008533]
[1641230482417,1.50775065,46464.0,46463.0,0.008533]
[1641230483665,1.56156665,46464.0,46463.0,0.008533]
[1641230483866,2.06156665,46464.0,46463.0,0.008533]
[1641230484266,2.00775065,46464.0,46463.0,0.008533]
[1641230484564,2.00648364,46464.0,46463.0,0.008533]
[1641230485968,2.00665851,46464.0,46463.0,0.008533]
[1641230486168,2.00683338,46464.0,46463.0,0.008533]
[1641230489814,1.50683338,46464.0,46463.0,0.008533]
[1641230490015,1.50683338,46464.0,46461.0,0.00121262]
[1641230490217,0.07028975,46462.0,46461.0,0.00121262]
[1641230490420,1.05132516,46462.0,46461.0,0.00121262]
[1641230491069,1.20132516,46462.0,46461.0,0.00121262]
[1641230491969,1.20132516,46462.0,46461.0,0.00974662]
[1641230494171,1.20132516,46462.0,46461.0,0.008534]
[1641230495528,1.50613744,46462.0,46461.0,0.008534]
[1641230496127,1.20132516,46462.0,46461.0,0.008534]
[1641230496525,1.4994002,46462.0,46461.0,0.008534]
[1641230496730,1.20132516,46462.0,46461.0,0.008534]
[1641230496924,1.50009171,46462.0,46461.0,0.008534]
[1641230497724,1.50026489,46462.0,46461.0,0.008534]
[1641230498329,1.20149834,46462.0,46461.0,0.008534]
[1641230501973,1.20149834,46462.0,46459.0,0.05490411]
[1641230502222,0.07028975,46460.0,46459.0,0.05490411]
[1641230502422,0.70150316,46460.0,46459.0,0.05490411]
[1641230503823,0.70150316,46460.0,46459.0,0.06343811]
[1641230504023,0.85150316,46460.0,46459.0,0.07087971]
[1641230508869,0.98729643,46460.0,46459.0,0.07087971]
[1641230509271,0.98746793,46460.0,46459.0,0.07087971]
[1641230511323,0.78138491,46460.0,46459.0,0.07087971]
[1641230512427,0.78138491,46460.0,46459.0,0.41340871]
[1641230512624,0.78138491,46460.0,46459.0,1.55740871]
[1641230514177,0.78138491,46460.0,46459.0,1.65740871]
[1641230517079,0.78138491,46460.0,46459.0,0.51340871]
[1641230518325,0.78138491,46460.0,46459.0,0.41340871]
[1641230519927,0.78138491,46460.0,46459.0,1.55740871]
[1641230520127,0.78138491,46460.0,46459.0,0.41340871]
[1641230520328,0.78138491,46460.0,46459.0,0.51340871]
[1641230520530,0.78138491,46460.0,46459.0,1.65740871]
[1641230521972,0.78138491,46460.0,46459.0,0.51340871]
[1641230522172,0.78138491,46460.0,46459.0,0.41340871]
[1641230522373,0.78138491,46460.0,46459.0,0.51340871]
[1641230525530,0.78138491,46460.0,46459.0,1.65740871]
[1641230528671,0.78138491,46460.0,46459.0,1.70740871]
[1641230528872,0.78078491,46460.0,46459.0,2.31032598]
[1641230529473,0.34895856,46460.0,46459.0,2.31032598]
[1641230529669,0.34715856,46460.0,46459.0,2.31032598]
[1641230529872,0.34535856,46460.0,46459.0,2.89032598]
[1641230530071,0.58649034,46481.0,46461.0,0.244419]
[1641230530072,0.15,46463.0,46461.0,0.244419]
[1641230530273,0.15,46463.0,46462.0,2.09329352]
[1641230530472,0.0001,46463.0,46462.0,2.09329352]
[1641230530672,0.0001,46463.0,46462.0,2.19329352]
[1641230531171,0.053791,46478.0,46474.0,0.27637477]
[1641230531376,0.053791,46478.0,46476.0,0.08438646]
[1641230531576,0.053791,46478.0,46477.0,0.0481]
[1641230532224,0.0001,46480.0,46477.0,0.0481]
[1641230533024,0.06869434,46478.0,46477.0,0.0481]
[1641230533727,0.00011183,46478.0,46477.0,0.0481]
[1641230533925,0.00011183,46478.0,46477.0,0.04917577]
[1641230534426,0.00011183,46478.0,46477.0,0.29348777]
[1641230535224,0.06880617,46478.0,46477.0,0.29348777]
[1641230535625,0.00011183,46478.0,46477.0,0.29348777]
[1641230536476,0.00011183,46478.0,46477.0,0.30202177]
[1641230537775,0.06880617,46478.0,46477.0,0.30202177]
[1641230537975,0.00011183,46478.0,46477.0,0.30202177]
[1641230538176,0.06880617,46478.0,46477.0,0.30202177]
[1641230539174,0.00011183,46478.0,46477.0,0.30202177]
[1641230540822,0.06880617,46478.0,46477.0,0.30202177]
[1641230541024,0.00011183,46478.0,46477.0,0.30202177]
[1641230541222,0.06880617,46478.0,46477.0,0.30202177]
[1641230541421,0.00011183,46478.0,46477.0,0.30202177]
[1641230541825,0.06880617,46478.0,46477.0,0.30202177]
[1641230542023,0.00011183,46478.0,46477.0,0.40202177]
[1641230542225,0.00011183,46478.0,46477.0,0.30202177]
[1641230542430,0.06880617,46478.0,46477.0,0.30202177]
[1641230542825,0.00011183,46478.0,46477.0,0.30202177]
[1641230544082,0.00011183,46478.0,46477.0,0.40202177]
[1641230544678,0.00065046,46479.0,46478.0,0.10756763]
[1641230544880,0.00065046,46479.0,46478.0,0.39997163]
[1641230545091,0.00065046,46479.0,46478.0,1.69520894]
[1641230548119,0.00065046,46479.0,46478.0,1.70374194]
[1641230552481,1.25412228,46501.0,46479.0,0.244298]
[1641230552681,0.20384033,46500.0,46482.0,0.107564]
[1641230552885,0.64538,46485.0,46482.0,0.155664]
[1641230553082,0.64538,46485.0,46482.0,0.205664]
[1641230554482,0.699162,46485.0,46482.0,0.205664]
[1641230555726,0.699162,46485.0,46483.0,0.00107565]
[1641230555925,0.749162,46485.0,46483.0,0.00107565]
[1641230556225,0.699162,46485.0,46483.0,0.00107565]
[1641230556628,0.64538,46485.0,46483.0,0.05485565]
[1641230556827,7.818e-05,46484.0,46483.0,0.10863499]
[1641230557026,0.64545818,46484.0,46483.0,0.10863499]
[1641230561876,0.64045818,46484.0,46483.0,0.10863499]
[1641230567673,0.64052925,46484.0,46483.0,0.10863499]
[1641230573129,0.64052925,46484.0,46483.0,0.37844282]
[1641230573330,0.64052925,46484.0,46483.0,0.47844282]
[1641230573968,0.64052925,46484.0,46483.0,0.20863499]
[1641230574369,0.64052925,46484.0,46483.0,0.10863499]
[1641230590772,0.64052925,46484.0,46483.0,0.15863499]
[1641230590971,0.64052925,46484.0,46483.0,0.20863499]
[1641230591971,0.64052925,46484.0,46483.0,0.15863499]
[1641230596472,0.63552925,46484.0,46483.0,0.15863499]
[1641230596673,0.63552925,46484.0,46483.0,0.16363499]
[1641230599582,0.63552925,46484.0,46483.0,1.68456008]
[1641230599832,0.63552925,46484.0,46483.0,1.60129442]
[1641230600129,0.63552925,46484.0,46483.0,1.70129442]
[1641230600729,0.63559585,46484.0,46483.0,1.96801891]
[1641230606586,0.63559585,46484.0,46483.0,0.55708264]
[1641230607829,0.63559585,46484.0,46483.0,1.70108264]
[1641230610832,0.63559585,46484.0,46483.0,0.55708264]
[1641230611469,0.63559585,46484.0,46483.0,1.70108264]
[1641230613867,0.59586794,46484.0,46483.0,1.70108264]
[1641230615516,0.59586794,46484.0,46483.0,4.05800485]
[1641230615719,0.59586794,46484.0,46483.0,5.19899212]
[1641230615919,0.59586794,46484.0,46483.0,5.25913212]
[1641230616719,0.59586794,46484.0,46483.0,5.20913212]
[1641230618219,0.59586794,46484.0,46483.0,5.14899212]
[1641230620373,0.59586794,46484.0,46483.0,5.49899212]
[1641230624045,0.59586794,46484.0,46483.0,5.59899212]
[1641230624247,0.59586794,46484.0,46483.0,5.70016212]
[1641230624645,0.16578694,46484.0,46483.0,5.70016212]